bitfinex/quotes_SOLUSD_20240808
["timestamp","ask_amount","ask_price","bid_price","bid_amount"]
[1723105923905,16.2656,154.76,154.69,22.6248]
[1723105924284,6.4629,154.73,154.69,16.1604]
[1723105924897,6.4625,154.74,154.69,22.6248]
[1723105925098,0.17,154.75,154.69,16.1604]
[1723105925299,51.6321,154.75,154.7,6.4637]
[1723105925908,45.17,154.75,154.72,6.4631]
[1723105926109,22.7273,154.76,154.71,6.4633]
[1723105926421,6.4621,154.75,154.71,6.4633]
[1723105926604,22.7272,154.76,154.71,6.4633]
[1723105926930,6.4621,154.75,154.7,6.464]
[1723105927292,2.55467607,154.78,154.71,16.1585]
[1723105927508,22.1402,154.8,154.75,6.4619]
[1723105927827,22.1402,154.8,154.74,16.156]
[1723105927828,15.6802,154.8,154.74,16.156]
[1723105928121,6.4606,154.79,154.74,22.6183]
[1723105928691,6.5013,154.82,154.76,6.4615]
[1723105929099,6.5013,154.82,154.74,22.6183]
[1723105929100,6.4604,154.79,154.74,22.6183]
[1723105929593,6.46,154.8,154.75,6.462]
[1723105929817,6.4595,154.81,154.74,16.156]
[1723105930013,6.75363477,154.83,154.76,16.1533]
[1723105930400,0.17,154.82,154.76,16.1533]
[1723105930704,0.17,154.82,154.76,22.6148]
[1723105931223,0.17,154.82,154.76,16.1533]
[1723105931424,6.7987,154.83,154.78,6.4604]
[1723105931617,51.4592,154.82,154.78,6.4604]
[1723105931819,6.4595,154.81,154.76,16.1533]
[1723105932198,6.4595,154.81,154.76,22.6146]
[1723105932631,6.46,154.8,154.76,22.6146]
[1723105932941,81.35,154.79,154.7,6.464]
[1723105933216,42.5634,154.79,154.7,22.6237]
[1723105933414,6.462,154.75,154.7,22.6237]
[1723105933719,45.0,154.74,154.71,6.4637]
[1723105934511,45.0,154.75,154.71,6.4637]
[1723105936221,51.462,154.75,154.71,6.4637]
[1723105936423,0.17,154.74,154.67,22.596]
[1723105936598,0.17,154.74,154.67,16.1628]
[1723105936800,0.34,154.74,154.67,16.1628]
[1723105937218,6.4632,154.72,154.67,22.6278]
[1723105937419,45.0,154.71,154.68,6.4648]
[1723105937720,15.5934,154.76,154.69,16.1604]
[1723105938045,6.3834,154.79,154.72,16.1581]
[1723105938206,13.13620516,154.79,154.72,16.1581]
[1723105938518,6.4621,154.75,154.69,22.6253]
[1723105938723,6.4627,154.74,154.69,22.6253]
[1723105939019,73.04024485,154.79,154.63,6.5162]
[1723105939020,16.156,154.75,154.63,6.5162]
[1723105939243,45.17,154.74,154.68,6.4648]
[1723105939535,0.17,154.73,154.69,6.4644]
[1723105940111,0.17,154.73,154.7,6.464]
[1723105940307,51.4625,154.74,154.7,6.464]
[1723105940531,45.0,154.74,154.69,16.1608]
[1723105940906,45.0,154.74,154.7,6.4637]
[1723105941307,444.56620881,154.79,154.71,16.1585]
[1723105941608,0.17,154.78,154.71,16.1585]
[1723105941938,45.34,154.78,154.71,16.1585]
[1723105942437,6.4612,154.77,154.72,6.4632]
[1723105942634,6.4608,154.78,154.73,6.4628]
[1723105942855,399.42504485,154.79,154.71,16.1585]
[1723105942856,6.462,154.75,154.71,16.1585]
[1723105943136,6.4631,154.73,154.69,15.1472]
[1723105943330,6.4631,154.73,154.69,21.6116]
[1723105943537,6.4625,154.74,154.69,21.6116]
[1723105944150,45.0,154.73,154.69,21.6116]
[1723105944352,45.0,154.73,154.7,6.464]
[1723105945259,51.4624,154.74,154.7,6.464]
[1723105945433,51.4624,154.74,154.69,21.6116]
[1723105945634,51.4624,154.74,154.68,16.1618]
[1723105945635,6.4633,154.72,154.68,16.1618]
[1723105945833,45.0,154.71,154.68,16.1618]
[1723105946357,45.0,154.71,154.68,22.6266]
[1723105947871,51.4638,154.71,154.66,28.9707]
[1723105948167,6.6342,154.7,154.65,22.6309]
[1723105948335,45.0,154.69,154.65,22.6309]
[1723105948661,0.17,154.72,154.67,6.4653]
[1723105948840,0.17,154.72,154.62,22.5657]
[1723105948841,34.6021,154.75,154.71,6.4635]
[1723105949035,45.17,154.74,154.72,6.4632]
[1723105949265,45.0,154.74,154.72,6.4632]
[1723105949562,45.0,154.75,154.73,6.4627]
[1723105949768,28.14,154.77,154.72,6.4631]
[1723105950064,34.6015,154.77,154.72,6.4631]
[1723105950276,28.14,154.77,154.71,16.1586]
[1723105950567,6.4612,154.77,154.73,16.1565]
[1723105950866,6.4612,154.77,154.73,22.6192]
[1723105951357,391.5607,154.78,154.73,22.6192]
[1723105951733,45.0,154.77,154.73,22.6192]
[1723105952151,45.0,154.77,154.73,16.1565]
[1723105952545,6.4617,154.76,154.72,6.4632]
[1723105953672,45.0,154.78,154.77,6.4612]
[1723105953961,45.17,154.78,154.69,21.9492]
[1723105954158,45.17,154.78,154.74,16.1555]
[1723105954352,45.17,154.78,154.74,22.6178]
[1723105955061,28.14,154.79,154.75,6.4619]
[1723105955259,34.6006,154.79,154.75,6.4619]
[1723105955452,34.6006,154.79,154.74,22.6178]
[1723105956143,34.6006,154.79,154.75,6.4619]
[1723105956556,45.0,154.78,154.74,22.6178]
[1723105957357,45.0,154.78,154.75,6.4619]
[1723105958749,45.0,154.78,154.71,16.1588]
[1723105958965,28.48,154.77,154.69,21.9492]
[1723105959261,6.4625,154.74,154.69,28.4136]
[1723105959460,45.17,154.73,154.69,28.4136]
[1723105960159,0.17,154.73,154.69,21.9492]
[1723105960360,28.14,154.77,154.7,16.1593]
[1723105960550,45.17,154.76,154.72,6.4632]
[1723105960746,45.0,154.76,154.74,6.4621]
[1723105960967,6.4609,154.78,154.74,6.4621]
[1723105961145,6.4616,154.76,154.72,16.1577]
[1723105961454,45.0,154.75,154.72,22.6209]
[1723105961655,45.0,154.75,154.73,6.4627]
[1723105961859,45.0,154.76,154.73,6.4627]
[1723105962165,45.0,154.76,154.72,22.6208]
[1723105962459,28.31,154.77,154.74,6.4623]
[1723105962662,34.6003,154.79,154.75,6.4619]
[1723105962878,34.88771824,154.81,154.75,6.4619]
[1723105963061,6.4606,154.79,154.74,22.618]
[1723105963265,6.4606,154.79,154.75,6.4619]
[1723105964789,14.03143969,154.82,154.77,6.4607]
[1723105965076,0.17,154.81,154.78,6.4606]
[1723105965272,0.17,154.81,154.77,6.4611]
[1723105965944,6.6296,154.81,154.77,6.4611]
[1723105966149,51.4599,154.8,154.76,22.615]
[1723105969053,45.0,154.8,154.74,6.4621]
[1723105969283,45.0,154.8,154.73,22.6193]
[1723105969284,6.4613,154.77,154.73,22.6193]
[1723105970345,6.4608,154.78,154.73,22.6193]
[1723105970588,45.0,154.77,154.73,22.6193]
[1723105971078,45.0,154.77,154.74,6.4624]
[1723105972262,0.17,154.76,154.69,6.1972]
[1723105972570,6.4627,154.74,154.69,6.4645]
[1723105972765,45.17,154.73,154.69,6.4645]
[1723105973151,45.17,154.73,154.7,6.464]
[1723105973353,6.6319,154.76,154.71,6.4633]
[1723105973759,45.17,154.75,154.72,6.463]
[1723105973956,0.17,154.75,154.72,6.463]
[1723105974154,6.462,154.75,154.71,22.6221]
[1723105974377,45.0,154.74,154.71,16.1586]
[1723105975259,45.0,154.74,154.71,22.622]
[1723105975460,45.0,154.75,154.71,22.622]
[1723105976769,45.0,154.75,154.71,16.1586]
[1723105976961,45.0,154.76,154.73,6.4624]
[1723105977583,45.0,154.76,154.72,6.4632]
[1723105977955,28.31,154.77,154.73,6.4627]
[1723105978352,34.7713,154.77,154.72,6.4632]
[1723105979274,45.0,154.76,154.72,6.4632]
[1723105980402,45.0,154.76,154.65,21.8026]
[1723105980403,45.0,154.76,154.73,16.1562]
[1723105980587,6.4607,154.79,154.74,6.4623]
[1723105980788,6.4607,154.79,154.73,16.1562]
[1723105981083,6.4608,154.78,154.73,22.6189]
[1723105981378,6.4612,154.77,154.73,16.1562]
[1723105981579,28.14,154.77,154.7,16.1596]
[1723105981824,28.14,154.77,154.68,21.1291]
[1723105981825,28.14,154.77,154.72,16.1574]
[1723105982004,6.4608,154.78,154.73,6.4627]
[1723105982207,51.4613,154.77,154.73,6.4627]
[1723105982505,34.6003,154.79,154.75,6.4619]
[1723105982721,6.4608,154.78,154.74,16.1556]
[1723105982897,51.4608,154.78,154.74,22.6178]
[1723105983098,51.4608,154.78,154.74,16.1556]
[1723105983297,6.4612,154.77,154.74,16.1556]
[1723105983714,6.4612,154.77,154.73,6.4627]
[1723105983914,51.4609,154.78,154.73,6.4627]
[1723105984617,51.4609,154.78,154.74,6.4623]
[1723105985727,51.4609,154.78,154.73,22.6193]
[1723105985930,45.0,154.78,154.73,16.1566]
[1723105986433,45.0,154.78,154.71,6.4636]
[1723105986635,6.6316,154.77,154.72,6.4631]
[1723105986820,51.4609,154.78,154.72,16.1578]
[1723105987037,28.14,154.81,154.74,16.1555]
[1723105987261,45.0,154.8,154.78,6.4606]
[1723105987546,31.4859658,154.83,154.77,6.4611]
[1723105987547,45.0,154.81,154.77,6.4611]
[1723105987759,45.0,154.82,154.77,6.4611]
[1723105988119,45.0,154.82,154.76,22.6149]
[1723105988746,0.17,154.81,154.76,22.6149]
[1723105989034,6.4599,154.8,154.76,22.6149]
[1723105989925,6.4599,154.8,154.76,16.1533]
[1723105990335,45.17,154.79,154.74,6.4622]
[1723105990535,28.14,154.81,154.75,16.1546]
[1723105990733,45.0,154.8,154.75,22.6165]
[1723105991130,6.4607,154.79,154.75,22.6165]
[1723105991443,45.0,154.8,154.76,6.4615]
[1723105992018,51.46,154.8,154.76,6.4615]
[1723105992645,45.0,154.8,154.77,6.4611]
[1723105992840,45.0,154.8,154.76,6.4614]
[1723105993144,51.4601,154.8,154.76,6.4614]
[1723105993337,51.4601,154.8,154.75,22.6165]
[1723105994036,45.0,154.8,154.76,6.4615]
[1723105994236,6.4591,154.82,154.77,16.1525]
[1723105994842,428.8587,154.85,154.79,16.1504]
[1723105995048,419.6979,154.85,154.8,6.4597]
[1723105995425,6.4584,154.84,154.79,22.6106]
[1723105996251,28.14,154.84,154.76,16.1538]
[1723105996440,28.14,154.82,154.76,16.1538]
[1723105996742,28.14,154.8,154.73,16.1567]
[1723105996943,6.4608,154.78,154.73,22.6194]
[1723105997158,6.4622,154.75,154.7,22.6235]
[1723105997534,6.4622,154.75,154.71,6.4636]
[1723105997738,34.6017,154.76,154.71,6.4636]
[1723105997941,45.0,154.75,154.71,6.4636]
[1723105999143,51.462,154.75,154.71,6.4636]
[1723105999335,28.14,154.74,154.66,37.4234]
[1723105999539,45.17,154.73,154.68,6.4649]
[1723106000354,51.6329,154.73,154.68,6.4649]
[1723106002141,45.17,154.73,154.69,6.4644]
[1723106002336,45.17,154.73,154.68,16.1616]
[1723106002540,50.3766,154.76,154.66,21.2599]
[1723106002734,51.632,154.75,154.71,6.4635]
[1723106003130,51.632,154.75,154.7,22.6236]
[1723106004167,51.632,154.75,154.7,22.6233]
[1723106005350,45.17,154.75,154.7,16.1595]
[1723106005551,0.17,154.74,154.7,16.1595]
[1723106005733,6.6325,154.74,154.7,16.1595]
[1723106005935,45.17,154.73,154.7,16.1595]
[1723106006539,6.4651,154.68,154.66,21.2599]
[1723106006731,6.4645,154.69,154.64,6.4665]
[1723106006939,6.4645,154.69,154.65,6.4661]
[1723106006940,45.0,154.68,154.65,6.4661]
[1723106007148,45.0,154.68,154.64,22.6327]
[1723106007353,45.0,154.68,154.65,6.466]
[1723106008065,28.14,154.71,154.66,16.1637]
[1723106008243,28.14,154.73,154.69,6.4643]
[1723106008437,51.6336,154.72,154.68,16.1616]
[1723106008768,45.0,154.72,154.69,6.4644]
[1723106008973,15.775,154.76,154.72,6.4631]
[1723106009274,34.6013,154.77,154.7,16.1598]
[1723106009846,6.4617,154.76,154.72,6.4631]
[1723106010478,6.462,154.75,154.7,22.6236]
[1723106010679,28.14,154.75,154.7,22.6236]
[1723106010979,28.14,154.75,154.7,16.1598]
[1723106011141,34.6012,154.77,154.72,6.4631]
[1723106011444,34.6012,154.77,154.74,6.4624]
[1723106011445,28.14,154.77,154.74,6.4624]
[1723106011635,45.0,154.76,154.73,6.4627]
[1723106012446,51.4616,154.76,154.72,22.6209]
[1723106012659,45.0,154.76,154.72,22.6209]
[1723106012857,51.4616,154.76,154.72,16.1577]
[1723106013049,45.0,154.76,154.72,22.6208]
[1723106013455,6.4611,154.78,154.73,6.4624]
[1723106013760,6.4611,154.78,154.74,6.4623]
[1723106013949,34.6003,154.79,154.74,6.4623]
[1723106014150,34.6004,154.79,154.75,6.4619]
[1723106014353,34.6004,154.79,154.74,22.6178]
[1723106014564,6.4604,154.79,154.74,22.6178]
[1723106014764,28.14,154.81,154.76,6.4615]
[1723106014958,6.4591,154.82,154.77,22.6137]
[1723106015158,6.4596,154.81,154.77,22.6137]
[1723106016668,6.4596,154.81,154.77,16.1527]
[1723106017356,51.4599,154.8,154.75,6.4619]
[1723106018062,51.4599,154.8,154.76,6.4615]
[1723106018255,6.4595,154.81,154.77,6.4611]
[1723106018571,28.48,154.82,154.76,16.1535]
[1723106018867,6.4637,154.71,154.69,6.4618]
[1723106019066,6.4637,154.71,154.68,16.4455]
[1723106019284,6.4641,154.7,154.66,6.4657]
[1723106019444,6.4641,154.7,154.64,16.2854]
[1723106019445,45.0,154.69,154.64,16.2854]
[1723106019771,28.14,154.66,154.6,6.4681]
[1723106019985,0.17,154.65,154.59,16.1716]
[1723106020161,45.0,154.65,154.59,16.1716]
[1723106020658,28.14,154.68,154.61,16.1689]
[1723106020845,6.6347,154.69,154.64,6.4662]
[1723106021254,45.0,154.68,154.63,16.1667]
[1723106021570,6.465,154.68,154.63,16.1667]
[1723106021772,45.0,154.67,154.63,16.1667]
[1723106021987,6.6346,154.69,154.64,6.4666]
[1723106022277,28.31,154.7,154.65,16.1645]
[1723106022278,28.14,154.7,154.65,16.1645]
[1723106022499,45.0,154.69,154.65,16.1645]
[1723106022653,45.0,154.69,154.65,22.6306]
[1723106022977,45.0,154.69,154.65,16.1645]
[1723106023168,6.465,154.68,154.61,16.1688]
[1723106023355,51.4645,154.69,154.61,16.1688]
[1723106025145,51.4645,154.69,154.58,28.14]
[1723106025146,45.0,154.69,154.64,16.1661]
[1723106025458,6.4615,154.77,154.65,1.29315385]
[1723106025660,28.14,154.76,154.65,21.29315385]
[1723106025862,34.6017,154.76,154.7,16.1596]
[1723106026556,34.6017,154.76,154.71,6.4636]
[1723106027865,34.6017,154.76,154.7,16.1596]
[1723106027866,28.14,154.76,154.7,16.1596]
[1723106028054,34.6008,154.78,154.73,6.4627]
[1723106028564,6.4612,154.77,154.72,28.6295]
[1723106028764,28.14,154.76,154.68,16.1614]
[1723106028993,6.4625,154.74,154.68,16.1614]
[1723106030061,51.4628,154.73,154.68,22.6259]
[1723106030384,28.14,154.74,154.68,16.1614]
[1723106030587,28.14,154.76,154.68,16.1614]
[1723106030767,45.0,154.75,154.68,16.1614]
[1723106031378,6.4625,154.74,154.69,6.4642]
[1723106031959,51.462,154.75,154.7,6.4638]
[1723106032178,34.6016,154.76,154.7,16.1597]
[1723106032361,34.6019,154.76,154.71,6.4636]
[1723106032755,45.0,154.75,154.7,16.1597]
[1723106032975,51.4621,154.75,154.7,22.6237]
[1723106033189,45.0,154.75,154.69,6.4645]
[1723106033395,45.0,154.75,154.67,22.3087]
[1723106034097,6.4629,154.73,154.68,6.4648]
[1723106034581,6.4629,154.73,154.69,6.4644]
[1723106035382,6.4629,154.73,154.68,6.4648]
[1723106036456,6.4637,154.71,154.67,28.7739]
[1723106036660,6.4637,154.71,154.67,16.1631]
[1723106037665,6.4637,154.71,154.67,22.6282]
[1723106037868,28.14,154.72,154.68,6.4649]
[1723106038861,34.6033,154.72,154.68,6.4649]
[1723106039062,34.6033,154.72,154.67,22.6283]
[1723106040761,6.4637,154.71,154.67,22.6283]
[1723106040975,6.4644,154.7,154.65,6.4661]
[1723106041204,6.4644,154.7,154.64,16.1664]
[1723106041205,6.4653,154.67,154.64,16.1664]
[1723106041365,45.0,154.69,154.62,6.4673]
[1723106042063,45.0,154.69,154.63,6.4669]
[1723106042064,34.605,154.68,154.63,6.4669]
[1723106042274,34.605,154.68,154.64,6.4664]
[1723106042275,45.0,154.67,154.64,6.4664]
[1723106042688,45.0,154.68,154.64,6.4664]
[1723106043095,51.465,154.68,154.64,6.4664]
[1723106043609,45.0,154.68,154.64,6.4664]
[1723106043762,34.6033,154.72,154.67,6.465]
[1723106043968,6.4642,154.7,154.65,16.1646]
[1723106044167,28.14,154.66,154.54,6.72991779]
[1723106044368,6.4673,154.63,154.53,34.144]
[1723106044580,28.14,154.66,154.53,34.144]
[1723106044781,45.0,154.65,154.6,6.4681]
[1723106045186,6.4666,154.64,154.59,6.4686]
[1723106046199,6.4671,154.63,154.58,22.6409]
[1723106046905,45.0,154.65,154.6,6.4679]
[1723106047189,45.0,154.65,154.61,6.4675]
[1723106048794,45.0,154.65,154.6,16.1701]
[1723106048795,45.0,154.65,154.57,16.1734]
[1723106048996,45.0,154.65,154.55,28.14]
[1723106048997,6.4683,154.6,154.55,6.4702]
[1723106049196,6.4674,154.63,154.57,6.4691]
[1723106049374,6.4674,154.63,154.58,6.469]
[1723106049574,45.0,154.62,154.58,6.469]
[1723106049982,45.0,154.62,154.59,16.2812]
[1723106050184,15.7723,154.74,154.69,6.4644]
[1723106050367,15.7723,154.74,154.68,6.4648]
[1723106050692,6.4632,154.73,154.68,6.4648]
[1723106052097,6.4632,154.73,154.68,22.6265]
[1723106052772,6.4633,154.72,154.68,16.1617]
[1723106052979,6.4628,154.74,154.68,16.1617]
[1723106053174,6.4633,154.72,154.68,16.1617]
[1723106053378,6.4633,154.72,154.68,22.6266]
[1723106053379,45.0,154.71,154.68,22.6266]
[1723106053590,6.4633,154.72,154.68,22.6266]
[1723106054876,6.4629,154.73,154.68,22.6266]
[1723106055282,6.4629,154.73,154.62,28.14]
[1723106055283,28.14,154.75,154.65,16.1655]
[1723106055489,6.4636,154.72,154.67,6.465]
[1723106055687,6.4637,154.71,154.66,6.4657]
[1723106055882,51.4637,154.71,154.66,6.4657]
[1723106056079,6.4646,154.69,154.65,22.6316]
[1723106056415,79.6037,154.71,154.65,16.1655]
[1723106056889,45.0,154.71,154.65,16.1655]
[1723106057072,45.0,154.71,154.68,6.4648]
[1723106057278,28.14,154.75,154.67,16.1629]
[1723106057481,51.4628,154.74,154.69,6.4642]
[1723106058107,6.4629,154.73,154.69,6.4642]
[1723106058611,6.4629,154.73,154.67,16.1629]
[1723106058797,6.4629,154.73,154.68,6.4649]
[1723106059190,51.4625,154.74,154.69,6.4645]
[1723106059997,28.14,154.77,154.69,16.1605]
[1723106060313,6.4622,154.75,154.7,6.464]
[1723106060519,45.0,154.76,154.7,6.464]
[1723106061227,6.4624,154.74,154.69,22.6249]
[1723106061530,6.463,154.73,154.69,16.1605]
[1723106062396,6.4625,154.74,154.69,16.1605]
[1723106062596,6.4625,154.74,154.69,22.6249]
[1723106062822,51.4629,154.73,154.69,22.6249]
[1723106063117,45.0,154.73,154.69,16.1605]
[1723106063300,28.14,154.75,154.71,6.4636]
[1723106063499,34.6021,154.75,154.7,6.464]
[1723106064517,6.4608,154.78,154.74,6.4623]
[1723106065906,6.4599,154.8,154.73,16.5461]
[1723106066112,6.4599,154.8,154.74,1.29203027]
[1723106066507,401.2451,154.85,154.73,16.5461]
[1723106066508,34.5988,154.83,154.78,6.4605]
[1723106066712,6.4591,154.82,154.78,6.4605]
[1723106067331,6.4591,154.82,154.77,22.6134]
[1723106067921,6.4599,154.8,154.76,6.0129]
[1723106068118,6.4604,154.79,154.76,6.0129]
[1723106068796,6.4604,154.79,154.74,6.4623]
[1723106069517,6.4612,154.77,154.73,39.1653]
[1723106070018,6.4608,154.78,154.74,6.4623]
[1723106070623,28.14,154.79,154.73,16.5461]
[1723106070825,34.6012,154.77,154.72,12.6699]
[1723106071116,6.4618,154.76,154.72,6.2068]
[1723106071822,34.6012,154.77,154.72,12.6699]
[1723106072015,34.6012,154.77,154.72,22.3645]
[1723106072016,28.14,154.77,154.72,22.3645]
[1723106072217,34.6013,154.77,154.72,28.8274]
[1723106072419,28.14,154.77,154.72,22.3645]
[1723106072616,28.14,154.77,154.73,6.4626]
[1723106072817,34.6012,154.77,154.72,22.3645]
[1723106073126,28.14,154.77,154.72,22.3645]
[1723106073300,28.14,154.77,154.73,6.4627]
[1723106073922,34.6012,154.77,154.72,28.8276]
[1723106074909,34.6012,154.77,154.73,6.4627]
[1723106075318,28.14,154.79,154.74,16.1555]
[1723106075573,6.4604,154.79,154.75,6.4616]
[1723106075754,6.4604,154.79,154.74,22.6179]
[1723106076156,6.46,154.8,154.75,6.462]
[1723106076689,6.4604,154.79,154.74,22.6178]
[1723106078469,6.4608,154.78,154.74,22.6178]
[1723106078668,6.4615,154.77,154.72,12.6697]
[1723106078879,6.4619,154.76,154.72,6.2068]
[1723106079072,28.14,154.79,154.72,6.2068]
[1723106079297,6.4608,154.78,154.73,6.4628]
[1723106079709,6.4615,154.77,154.72,12.67]
[1723106079994,6.4609,154.78,154.74,6.4623]
[1723106080707,6.4617,154.76,154.72,6.2068]
[1723106081013,6.4613,154.77,154.72,12.6698]
[1723106081377,6.4617,154.76,154.72,12.6698]
[1723106081606,6.4617,154.76,154.72,6.2068]
[1723106081819,6.4617,154.76,154.71,22.6224]
[1723106082805,34.6013,154.77,154.72,6.4632]
[1723106083280,28.14,154.77,154.71,16.1589]
[1723106083483,28.14,154.75,154.69,15.4278]
[1723106083715,6.4629,154.73,154.69,15.4278]
[1723106083880,6.4635,154.72,154.68,22.6264]
[1723106084082,34.6029,154.73,154.68,22.6264]
[1723106084281,45.0,154.72,154.68,22.6264]
[1723106084808,28.14,154.73,154.69,6.4644]
[1723106084985,34.6021,154.75,154.7,6.464]
[1723106085187,45.0,154.74,154.7,6.464]
[1723106086608,51.4625,154.74,154.7,6.464]
[1723106088114,34.6021,154.75,154.7,6.464]
[1723106088420,6.4625,154.74,154.7,6.464]
[1723106088801,6.462,154.75,154.7,22.6238]
[1723106089115,6.4629,154.73,154.69,6.4644]
[1723106089693,6.4625,154.74,154.69,6.4644]
[1723106090603,28.14,154.77,154.69,16.1608]
[1723106090804,6.4621,154.75,154.7,6.4639]
[1723106091914,6.4624,154.74,154.69,22.6252]
[1723106092495,6.4624,154.74,154.7,6.464]
[1723106093319,6.4621,154.75,154.7,6.464]
[1723106093694,19.28,154.74,154.7,6.464]
[1723106095411,19.28,154.74,154.71,6.4635]
[1723106095618,25.7421,154.75,154.71,6.4635]
[1723106097418,25.7421,154.75,154.7,6.464]
[1723106097907,19.28,154.78,154.72,21.8712]
[1723106098112,19.28,154.78,154.72,41.1512]
[1723106098315,25.741,154.78,154.73,6.4627]
[1723106099205,25.7413,154.77,154.73,6.4627]
[1723106100542,19.28,154.77,154.73,6.4627]
[1723106101098,25.7413,154.77,154.73,6.4627]
[1723106102227,19.28,154.77,154.73,6.4627]
[1723106102699,19.28,154.74,154.72,21.8712]
[1723106103307,19.28,154.74,154.72,28.3344]
[1723106103524,19.28,154.75,154.72,28.3344]
[1723106103821,19.28,154.76,154.73,6.4627]
[1723106105547,19.28,154.75,154.72,38.0288]
[1723106105751,19.28,154.74,154.72,38.0288]
[1723106106426,3.3459658,154.82,154.72,21.8712]
[1723106106617,34.5933658,154.84,154.75,16.1545]
[1723106106803,19.28,154.81,154.79,6.4603]
[1723106108511,19.28,154.86,154.83,6.4586]
[1723106109131,6.73412371,154.92,154.83,6.4586]
[1723106109132,19.28,154.85,154.83,6.4586]
[1723106109326,19.28,154.85,154.82,6.4591]
[1723106109818,6.457,154.87,154.82,6.4591]
[1723106112725,6.4574,154.86,154.81,28.6309]
[1723106113240,6.4574,154.86,154.73,19.42]
[1723106113241,28.08,154.84,154.78,22.3283]
[1723106113438,6.4589,154.83,154.79,6.4603]
[1723106113618,34.5382,154.84,154.79,6.4603]
[1723106114229,34.5382,154.84,154.8,6.4599]
[1723106114627,34.5382,154.84,154.79,6.4602]
[1723106115011,45.0,154.85,154.76,16.033]
[1723106115012,28.08,154.82,154.76,16.033]
[1723106115330,34.5391,154.82,154.77,6.4608]
[1723106115530,28.08,154.82,154.78,6.4607]
[1723106115737,28.08,154.86,154.76,16.033]
[1723106116048,28.08,154.86,154.8,6.4598]
[1723106116213,6.4583,154.84,154.8,6.4598]
[1723106116531,6.4583,154.84,154.79,6.4603]
[1723106116716,34.5375,154.86,154.81,6.4594]
[1723106116916,34.5375,154.86,154.82,6.4589]
[1723106117137,6.458,154.85,154.8,22.609]
[1723106117636,6.4583,154.84,154.8,22.609]
[1723106118451,6.4587,154.83,154.79,6.4601]
[1723106118647,6.4591,154.82,154.78,6.4607]
[1723106118930,34.5382,154.84,154.79,6.4601]
[1723106119130,28.08,154.84,154.8,6.4598]
[1723106119718,34.5375,154.86,154.79,17.44172658]
[1723106119912,28.08,154.88,154.81,6.6378]
[1723106120114,34.5367,154.88,154.81,6.6378]
[1723106120317,28.08,154.88,154.81,6.6378]
[1723106120528,6.4576,154.86,154.81,13.0969]
[1723106120836,6.4571,154.87,154.82,6.459]
[1723106121034,6.4575,154.86,154.81,13.0972]
[1723106121537,6.4575,154.86,154.82,6.459]
[1723106121725,6.4575,154.86,154.81,13.0972]
[1723106122412,34.5369,154.88,154.82,6.459]
[1723106122612,45.0,154.87,154.82,6.459]
[1723106122833,51.4572,154.87,154.82,6.459]
[1723106123523,28.08,154.88,154.84,6.4582]